{"text_format":"1","workbook":"xlsx","n_sheets":2,"sheets":["Allegato A) Valutazione rischio","Allegato B) Tabella riepilogo"],"not_rendered":{"charts":0,"images":0,"macros":1,"external_links":0,"defined_names":3,"comments":0,"pivot_tables":0},"unopened":[],"bounds":{"document_bytes":16777216,"sheet_cells":100000,"rows_first":2000,"rows_last":500,"rows_between":2000,"halvings":0,"cell_chars":16384,"cell_head_chars":4096},"cells_cut":0,"cells_raw":0,"read":"whole","date_system":"1900"}

{"sheet":"Allegato A) Valutazione rischio","index":0,"n_rows":116,"n_cols":8,"rows_kept":116,"cut":false,"hidden":false,"merged":[[108,0,111,7],[112,7,113,7],[114,1,115,2],[106,1,107,2],[97,1,98,2],[99,0,103,7],[104,7,105,7],[0,0,0,7],[17,0,20,7],[21,7,22,7],[79,0,80,0],[81,0,85,7],[40,0,41,0],[43,0,48,7],[49,7,50,7],[51,0,52,0],[53,0,58,7],[59,7,60,7],[15,0,16,0],[25,0,28,7],[29,7,30,7],[31,0,32,0],[33,0,37,7],[86,7,87,7],[88,0,89,0],[90,0,94,7],[95,7,96,7],[61,0,62,0],[63,0,68,7],[69,7,70,7],[71,0,72,0],[73,0,76,7],[77,7,78,7],[38,7,39,7],[23,0,24,0],[1,0,4,7],[7,0,8,0],[5,7,6,7],[9,0,12,7],[13,7,14,7]]}
["Allegato A - criteri di determinazione del fattore di rischio relativo applicato ad ogni singolo processo dell’area di analisi: nella tabella  per ciascun processo è riportato il parametro numerico del Grado complessivo di rischio che nella formula del Piano costituisce il valore Somma Fattori di rischio relativi."]
["Area acquisizione e progressione del personale: A1 - Reclutamento"]
[]
[]
[]
[null,"Richiedente","Introduzione procedimento","Organo Istruttore","Istruzione","Organo Decidente","Decisione","Grado complessivo di rischio"]
[null,"Requisiti vincolanti","Requisiti vincolanti","Segretario","Regole vincolanti","Consiglio","Regole vincolanti"]
["Fattore di rischio relativo",{"$f":"IF(B7=\"Requisiti vincolanti\",0,IF(B7=\"Requisiti non vincolanti\",1,IF(B7=\"Nessun requisito\",2, \"Dato non elaborato\")))","v":0},{"$f":"IF(C7=\"Requisiti vincolanti\",0,IF(C7=\"Requisiti non vincolanti\",1,IF(C7=\"Nessun requisito\",2, \"Dato non elaborato\")))","v":0},{"$f":"IF(D7=\"Consiglio\",0,IF(D7=\"Commissione\",1,IF(D7=\"Singolo componente\",2,IF(D7=\"Consigliere Delegato\",2,IF(D7=\"Presidente\",2,IF(D7=\"Vice Presidente\",2,IF(D7=\"Segretario\",2,IF(D7=\"Tesoriere\",2,\"Dato non elaborato\"))))))))","v":2},{"$f":"IF(E7=\"Regole vincolanti\",0,IF(E7=\"Regole non vincolanti\",1,IF(E7=\"Discrezionalità totale\",2, \"Dato non elaborato\")))","v":0},{"$f":"IF(F7=\"Consiglio\",0,IF(F7=\"Commissione\",1,IF(F7=\"Singolo componente\",2,IF(F7=\"Consigliere Delegato\",2,IF(F7=\"Presidente\",2,IF(F7=\"Vice Presidente\",2,IF(F7=\"Segretario\",2,IF(F7=\"Tesoriere\",2,\"Dato non elaborato\"))))))))","v":0},{"$f":"IF(G7=\"Regole vincolanti\",0,IF(G7=\"Regole non vincolanti\",1,IF(G7=\"Discrezionalità totale\",2, \"Dato non elaborato\")))","v":0},{"$f":"IF(G8=\"Dato non elaborato\", \"Dato non elaborato\",SUM(B8:G8)*2/12)","v":0.33333333333333331}]
[null,{"$f":"IF(B8=0, \"Basso\",IF(B8=1,\"Medio\",IF(B8=2,\"Alto\", \"Dato non elaborato\")))","v":"Basso"},{"$f":"IF(C8=0, \"Basso\",IF(C8=1,\"Medio\",IF(C8=2,\"Alto\", \"Dato non elaborato\")))","v":"Basso"},"Alto","Basso","Basso","Basso",{"$f":"IF(B8=\"Dato non elaborato\",\"Dato non elaborato\",IF(H8<0.6,\"Basso\",IF(H8>1,\"Alto\",\"Medio\")))","v":"Basso"}]
["Area acquisizione e progressione del personale: A2 - Progressione di carriera"]
[]
[]
[]
[null,"Richiedente","Introduzione procedimento","Organo Istruttore","Istruzione","Organo Decidente","Decisione","Grado complessivo di rischio"]
[null,"Requisiti vincolanti","Requisiti vincolanti","Presidente","Regole vincolanti","Consiglio","Regole vincolanti"]
["Fattore di rischio relativo",{"$f":"IF(B15=\"Requisiti vincolanti\",0,IF(B15=\"Requisiti non vincolanti\",1,IF(B15=\"Nessun requisito\",2, \"Dato non elaborato\")))","v":0},{"$f":"IF(C15=\"Requisiti vincolanti\",0,IF(C15=\"Requisiti non vincolanti\",1,IF(C15=\"Nessun requisito\",2, \"Dato non elaborato\")))","v":0},{"$f":"IF(D15=\"Consiglio\",0,IF(D15=\"Commissione\",1,IF(D15=\"Singolo componente\",2,IF(D15=\"Consigliere Delegato\",2,IF(D15=\"Presidente\",2,IF(D15=\"Vice Presidente\",2,IF(D15=\"Segretario\",2,IF(D15=\"Tesoriere\",2,\"Dato non elaborato\"))))))))","v":2},{"$f":"IF(E15=\"Regole vincolanti\",0,IF(E15=\"Regole non vincolanti\",1,IF(E15=\"Discrezionalità totale\",2, \"Dato non elaborato\")))","v":0},{"$f":"IF(F15=\"Consiglio\",0,IF(F15=\"Commissione\",1,IF(F15=\"Singolo componente\",2,IF(F15=\"Consigliere Delegato\",2,IF(F15=\"Presidente\",2,IF(F15=\"Vice Presidente\",2,IF(F15=\"Segretario\",2,IF(F15=\"Tesoriere\",2,\"Dato non elaborato\"))))))))","v":0},{"$f":"IF(G15=\"Regole vincolanti\",0,IF(G15=\"Regole non vincolanti\",1,IF(G15=\"Discrezionalità totale\",2, \"Dato non elaborato\")))","v":0},{"$f":"IF(G16=\"Dato non elaborato\", \"Dato non elaborato\",SUM(B16:G16)*2/12)","v":0.33333333333333331}]
[null,{"$f":"IF(B16=0, \"Basso\",IF(B16=1,\"Medio\",IF(B16=2,\"Alto\", \"Dato non elaborato\")))","v":"Basso"},{"$f":"IF(C16=0, \"Basso\",IF(C16=1,\"Medio\",IF(C16=2,\"Alto\", \"Dato non elaborato\")))","v":"Basso"},{"$f":"IF(D16=0, \"Basso\",IF(D16=1,\"Medio\",IF(D16=2,\"Alto\", \"Dato non elaborato\")))","v":"Alto"},{"$f":"IF(E16=0, \"Basso\",IF(E16=1,\"Medio\",IF(E16=2,\"Alto\", \"Dato non elaborato\")))","v":"Basso"},{"$f":"IF(F16=0, \"Basso\",IF(F16=1,\"Medio\",IF(F16=2,\"Alto\", \"Dato non elaborato\")))","v":"Basso"},{"$f":"IF(G16=0, \"Basso\",IF(G16=1,\"Medio\",IF(G16=2,\"Alto\", \"Dato non elaborato\")))","v":"Basso"},{"$f":"IF(B16=\"Dato non elaborato\",\"Dato non elaborato\",IF(H16<0.6,\"Basso\",IF(H16>1,\"Alto\",\"Medio\")))","v":"Basso"}]
["Area Acquisizione e progressione personale: A3- Conferimento di incarichi di collaborazione esterna"]
[]
[]
[]
[null,"Richiedente","Introduzione procedimento","Organo Istruttore","Istruzione","Organo Decidente","Decisione","Grado complessivo di rischio"]
[null,"Requisiti non vincolanti","Requisiti non vincolanti","Segretario","Regole vincolanti","Consiglio","Regole vincolanti"]
["Fattore di rischio relativo",{"$f":"IF(B23=\"Requisiti vincolanti\",0,IF(B23=\"Requisiti non vincolanti\",1,IF(B23=\"Nessun requisito\",2, \"Dato non elaborato\")))","v":1},{"$f":"IF(C23=\"Requisiti vincolanti\",0,IF(C23=\"Requisiti non vincolanti\",1,IF(C23=\"Nessun requisito\",2, \"Dato non elaborato\")))","v":1},{"$f":"IF(D23=\"Consiglio\",0,IF(D23=\"Commissione\",1,IF(D23=\"Singolo componente\",2,IF(D23=\"Consigliere Delegato\",2,IF(D23=\"Presidente\",2,IF(D23=\"Vice Presidente\",2,IF(D23=\"Segretario\",2,IF(D23=\"Tesoriere\",2,\"Dato non elaborato\"))))))))","v":2},{"$f":"IF(E23=\"Regole vincolanti\",0,IF(E23=\"Regole non vincolanti\",1,IF(E23=\"Discrezionalità totale\",2, \"Dato non elaborato\")))","v":0},{"$f":"IF(F23=\"Consiglio\",0,IF(F23=\"Commissione\",1,IF(F23=\"Singolo componente\",2,IF(F23=\"Consigliere Delegato\",2,IF(F23=\"Presidente\",2,IF(F23=\"Vice Presidente\",2,IF(F23=\"Segretario\",2,IF(F23=\"Tesoriere\",2,\"Dato non elaborato\"))))))))","v":0},{"$f":"IF(G23=\"Regole vincolanti\",0,IF(G23=\"Regole non vincolanti\",1,IF(G23=\"Discrezionalità totale\",2, \"Dato non elaborato\")))","v":0},{"$f":"IF(G24=\"Dato non elaborato\", \"Dato non elaborato\",SUM(B24:G24)*2/12)","v":0.66666666666666663}]
[null,{"$f":"IF(B24=0, \"Basso\",IF(B24=1,\"Medio\",IF(B24=2,\"Alto\", \"Dato non elaborato\")))","v":"Medio"},{"$f":"IF(C24=0, \"Basso\",IF(C24=1,\"Medio\",IF(C24=2,\"Alto\", \"Dato non elaborato\")))","v":"Medio"},{"$f":"IF(D24=0, \"Basso\",IF(D24=1,\"Medio\",IF(D24=2,\"Alto\", \"Dato non elaborato\")))","v":"Alto"},{"$f":"IF(E24=0, \"Basso\",IF(E24=1,\"Medio\",IF(E24=2,\"Alto\", \"Dato non elaborato\")))","v":"Basso"},{"$f":"IF(F24=0, \"Basso\",IF(F24=1,\"Medio\",IF(F24=2,\"Alto\", \"Dato non elaborato\")))","v":"Basso"},{"$f":"IF(G24=0, \"Basso\",IF(G24=1,\"Medio\",IF(G24=2,\"Alto\", \"Dato non elaborato\")))","v":"Basso"},{"$f":"IF(B24=\"Dato non elaborato\",\"Dato non elaborato\",IF(H24<0.6,\"Basso\",IF(H24>1,\"Alto\",\"Medio\")))","v":"Medio"}]
["Area B: Servizi e Forniture"]
[]
[]
[]
[null,"Richiedente ed individuazione tipo servizio o fornitura","Introduzione procedimento (Offerta servizio e/o fornitura)","Organo Istruttore","Istruzione","Organo Decidente","Decisione","Grado complessivo di rischio"]
[null,"Requisiti vincolanti","Requisiti vincolanti","Tesoriere","Regole vincolanti","Consiglio","Regole vincolanti"]
["Fattore di rischio relativo",{"$f":"IF(B31=\"Requisiti vincolanti\",0,IF(B31=\"Requisiti non vincolanti\",1,IF(B31=\"Nessun requisito\",2, \"Dato non elaborato\")))","v":0},{"$f":"IF(C31=\"Requisiti vincolanti\",0,IF(C31=\"Requisiti non vincolanti\",1,IF(C31=\"Nessun requisito\",2, \"Dato non elaborato\")))","v":0},{"$f":"IF(D31=\"Consiglio\",0,IF(D31=\"Commissione\",1,IF(D31=\"Singolo componente\",2,IF(D31=\"Consigliere Delegato\",2,IF(D31=\"Presidente\",2,IF(D31=\"Vice Presidente\",2,IF(D31=\"Segretario\",2,IF(D31=\"Tesoriere\",2,\"Dato non elaborato\"))))))))","v":2},{"$f":"IF(E31=\"Regole vincolanti\",0,IF(E31=\"Regole non vincolanti\",1,IF(E31=\"Discrezionalità totale\",2, \"Dato non elaborato\")))","v":0},{"$f":"IF(F31=\"Consiglio\",0,IF(F31=\"Commissione\",1,IF(F31=\"Singolo componente\",2,IF(F31=\"Consigliere Delegato\",2,IF(F31=\"Presidente\",2,IF(F31=\"Vice Presidente\",2,IF(F31=\"Segretario\",2,IF(F31=\"Tesoriere\",2,\"Dato non elaborato\"))))))))","v":0},{"$f":"IF(G31=\"Regole vincolanti\",0,IF(G31=\"Regole non vincolanti\",1,IF(G31=\"Discrezionalità totale\",2, \"Dato non elaborato\")))","v":0},{"$f":"IF(G32=\"Dato non elaborato\", \"Dato non elaborato\",SUM(B32:G32)*2/12)","v":0.33333333333333331}]
[null,{"$f":"IF(B32=0, \"Basso\",IF(B32=1,\"Medio\",IF(B32=2,\"Alto\", \"Dato non elaborato\")))","v":"Basso"},{"$f":"IF(C32=0, \"Basso\",IF(C32=1,\"Medio\",IF(C32=2,\"Alto\", \"Dato non elaborato\")))","v":"Basso"},{"$f":"IF(D32=0, \"Basso\",IF(D32=1,\"Medio\",IF(D32=2,\"Alto\", \"Dato non elaborato\")))","v":"Alto"},{"$f":"IF(E32=0, \"Basso\",IF(E32=1,\"Medio\",IF(E32=2,\"Alto\", \"Dato non elaborato\")))","v":"Basso"},{"$f":"IF(F32=0, \"Basso\",IF(F32=1,\"Medio\",IF(F32=2,\"Alto\", \"Dato non elaborato\")))","v":"Basso"},{"$f":"IF(G32=0, \"Basso\",IF(G32=1,\"Medio\",IF(G32=2,\"Alto\", \"Dato non elaborato\")))","v":"Basso"},{"$f":"IF(B32=\"Dato non elaborato\",\"Dato non elaborato\",IF(H32<0.6,\"Basso\",IF(H32>1,\"Alto\",\"Medio\")))","v":"Basso"}]
["Area Provvedimenti ampliativi della sfera giuridica dei destinatari privi di effetto economico diretto ed immediato per il destinatario: C-1 Provvedimenti amministrativi di iscrizione, trasferimento, e cancellazione Albo Avvocati, dal Registro Praticanti, dal Registro Abilitati alla Difesa a spese dello Stato"]
[]
[]
[]
[]
[null,"Richiedente","Introduzione procedimento","Organo Istruttore","Istruzione","Organo Decidente","Decisione","Grado complessivo di rischio"]
[null,"Requisiti vincolanti","Requisiti vincolanti","Segretario","Regole vincolanti","Consiglio","Regole vincolanti"]
["Fattore di rischio relativo",{"$f":"IF(B40=\"Requisiti vincolanti\",0,IF(B40=\"Requisiti non vincolanti\",1,IF(B40=\"Nessun requisito\",2, \"Dato non elaborato\")))","v":0},{"$f":"IF(C40=\"Requisiti vincolanti\",0,IF(C40=\"Requisiti non vincolanti\",1,IF(C40=\"Nessun requisito\",2, \"Dato non elaborato\")))","v":0},{"$f":"IF(D40=\"Consiglio\",0,IF(D40=\"Commissione\",1,IF(D40=\"Singolo componente\",2,IF(D40=\"Consigliere Delegato\",2,IF(D40=\"Presidente\",2,IF(D40=\"Vice Presidente\",2,IF(D40=\"Segretario\",2,IF(D40=\"Tesoriere\",2,\"Dato non elaborato\"))))))))","v":2},{"$f":"IF(E40=\"Regole vincolanti\",0,IF(E40=\"Regole non vincolanti\",1,IF(E40=\"Discrezionalità totale\",2, \"Dato non elaborato\")))","v":0},{"$f":"IF(F40=\"Consiglio\",0,IF(F40=\"Commissione\",1,IF(F40=\"Singolo componente\",2,IF(F40=\"Consigliere Delegato\",2,IF(F40=\"Presidente\",2,IF(F40=\"Vice Presidente\",2,IF(F40=\"Segretario\",2,IF(F40=\"Tesoriere\",2,\"Dato non elaborato\"))))))))","v":0},{"$f":"IF(G40=\"Regole vincolanti\",0,IF(G40=\"Regole non vincolanti\",1,IF(G40=\"Discrezionalità totale\",2, \"Dato non elaborato\")))","v":0},{"$f":"IF(G41=\"Dato non elaborato\", \"Dato non elaborato\",SUM(B41:G41)*2/12)","v":0.33333333333333331}]
[null,{"$f":"IF(B41=0, \"Basso\",IF(B41=1,\"Medio\",IF(B41=2,\"Alto\", \"Dato non elaborato\")))","v":"Basso"},{"$f":"IF(C41=0, \"Basso\",IF(C41=1,\"Medio\",IF(C41=2,\"Alto\", \"Dato non elaborato\")))","v":"Basso"},{"$f":"IF(D41=0, \"Basso\",IF(D41=1,\"Medio\",IF(D41=2,\"Alto\", \"Dato non elaborato\")))","v":"Alto"},{"$f":"IF(E41=0, \"Basso\",IF(E41=1,\"Medio\",IF(E41=2,\"Alto\", \"Dato non elaborato\")))","v":"Basso"},{"$f":"IF(F41=0, \"Basso\",IF(F41=1,\"Medio\",IF(F41=2,\"Alto\", \"Dato non elaborato\")))","v":"Basso"},{"$f":"IF(G41=0, \"Basso\",IF(G41=1,\"Medio\",IF(G41=2,\"Alto\", \"Dato non elaborato\")))","v":"Basso"},{"$f":"IF(B41=\"Dato non elaborato\",\"Dato non elaborato\",IF(H41<0.6,\"Basso\",IF(H41>1,\"Alto\",\"Medio\")))","v":"Basso"}]
[]
["Area Provvedimenti ampliativi della sfera giuridica dei destinatari privi di effetto economico diretto ed immediato per il destinatario: C-2 Provvedimenti amministrativi di rilascio certificazione "]
[]
[]
[]
[]
[]
[null,"Richiedente","Introduzione procedimento","Organo Istruttore","Istruzione","Organo Decidente","Decisione","Grado complessivo di rischio"]
[null,"Requisiti vincolanti","Requisiti vincolanti","Segretario","Regole vincolanti","Segretario","Regole vincolanti"]
["Fattore di rischio relativo",{"$f":"IF(B51=\"Requisiti vincolanti\",0,IF(B51=\"Requisiti non vincolanti\",1,IF(B51=\"Nessun requisito\",2, \"Dato non elaborato\")))","v":0},{"$f":"IF(C51=\"Requisiti vincolanti\",0,IF(C51=\"Requisiti non vincolanti\",1,IF(C51=\"Nessun requisito\",2, \"Dato non elaborato\")))","v":0},{"$f":"IF(D51=\"Consiglio\",0,IF(D51=\"Commissione\",1,IF(D51=\"Singolo componente\",2,IF(D51=\"Consigliere Delegato\",2,IF(D51=\"Presidente\",2,IF(D51=\"Vice Presidente\",2,IF(D51=\"Segretario\",2,IF(D51=\"Tesoriere\",2,\"Dato non elaborato\"))))))))","v":2},{"$f":"IF(E51=\"Regole vincolanti\",0,IF(E51=\"Regole non vincolanti\",1,IF(E51=\"Discrezionalità totale\",2, \"Dato non elaborato\")))","v":0},{"$f":"IF(F51=\"Consiglio\",0,IF(F51=\"Commissione\",1,IF(F51=\"Singolo componente\",2,IF(F51=\"Consigliere Delegato\",2,IF(F51=\"Presidente\",2,IF(F51=\"Vice Presidente\",2,IF(F51=\"Segretario\",2,IF(F51=\"Tesoriere\",2,\"Dato non elaborato\"))))))))","v":2},{"$f":"IF(G51=\"Regole vincolanti\",0,IF(G51=\"Regole non vincolanti\",1,IF(G51=\"Discrezionalità totale\",2, \"Dato non elaborato\")))","v":0},{"$f":"IF(G52=\"Dato non elaborato\", \"Dato non elaborato\",SUM(B52:G52)*2/12)","v":0.66666666666666663}]
[null,{"$f":"IF(B52=0, \"Basso\",IF(B52=1,\"Medio\",IF(B52=2,\"Alto\", \"Dato non elaborato\")))","v":"Basso"},{"$f":"IF(C52=0, \"Basso\",IF(C52=1,\"Medio\",IF(C52=2,\"Alto\", \"Dato non elaborato\")))","v":"Basso"},{"$f":"IF(D52=0, \"Basso\",IF(D52=1,\"Medio\",IF(D52=2,\"Alto\", \"Dato non elaborato\")))","v":"Alto"},{"$f":"IF(E52=0, \"Basso\",IF(E52=1,\"Medio\",IF(E52=2,\"Alto\", \"Dato non elaborato\")))","v":"Basso"},{"$f":"IF(F52=0, \"Basso\",IF(F52=1,\"Medio\",IF(F52=2,\"Alto\", \"Dato non elaborato\")))","v":"Alto"},{"$f":"IF(G52=0, \"Basso\",IF(G52=1,\"Medio\",IF(G52=2,\"Alto\", \"Dato non elaborato\")))","v":"Basso"},{"$f":"IF(B52=\"Dato non elaborato\",\"Dato non elaborato\",IF(H52<0.6,\"Basso\",IF(H52>1,\"Alto\",\"Medio\")))","v":"Medio"}]
["Area Provvedimenti ampliativi della sfera giuridica dei destinatari privi di effetto economico diretto ed immediato per il destinatario: C-3 Provvedimenti amministrativi di accreditamento eventi formativi"]
[]
[]
[]
[]
[]
[null,"Richiedente","Introduzione procedimento","Organo Istruttore","Istruzione","Organo Decidente","Decisione","Grado complessivo di rischio"]
[null,"Requisiti non vincolanti","Requisiti non vincolanti","Presidente","Regole vincolanti","Consiglio","Regole vincolanti"]
["Fattore di rischio relativo",{"$f":"IF(B61=\"Requisiti vincolanti\",0,IF(B61=\"Requisiti non vincolanti\",1,IF(B61=\"Nessun requisito\",2, \"Dato non elaborato\")))","v":1},{"$f":"IF(C61=\"Requisiti vincolanti\",0,IF(C61=\"Requisiti non vincolanti\",1,IF(C61=\"Nessun requisito\",2, \"Dato non elaborato\")))","v":1},{"$f":"IF(D61=\"Consiglio\",0,IF(D61=\"Commissione\",1,IF(D61=\"Singolo componente\",2,IF(D61=\"Consigliere Delegato\",2,IF(D61=\"Presidente\",2,IF(D61=\"Vice Presidente\",2,IF(D61=\"Segretario\",2,IF(D61=\"Tesoriere\",2,\"Dato non elaborato\"))))))))","v":2},{"$f":"IF(E61=\"Regole vincolanti\",0,IF(E61=\"Regole non vincolanti\",1,IF(E61=\"Discrezionalità totale\",2, \"Dato non elaborato\")))","v":0},{"$f":"IF(F61=\"Consiglio\",0,IF(F61=\"Commissione\",1,IF(F61=\"Singolo componente\",2,IF(F61=\"Consigliere Delegato\",2,IF(F61=\"Presidente\",2,IF(F61=\"Vice Presidente\",2,IF(F61=\"Segretario\",2,IF(F61=\"Tesoriere\",2,\"Dato non elaborato\"))))))))","v":0},{"$f":"IF(G61=\"Regole vincolanti\",0,IF(G61=\"Regole non vincolanti\",1,IF(G61=\"Discrezionalità totale\",2, \"Dato non elaborato\")))","v":0},{"$f":"IF(G62=\"Dato non elaborato\", \"Dato non elaborato\",SUM(B62:G62)*2/12)","v":0.66666666666666663}]
[null,{"$f":"IF(B62=0, \"Basso\",IF(B62=1,\"Medio\",IF(B62=2,\"Alto\", \"Dato non elaborato\")))","v":"Medio"},{"$f":"IF(C62=0, \"Basso\",IF(C62=1,\"Medio\",IF(C62=2,\"Alto\", \"Dato non elaborato\")))","v":"Medio"},{"$f":"IF(D62=0, \"Basso\",IF(D62=1,\"Medio\",IF(D62=2,\"Alto\", \"Dato non elaborato\")))","v":"Alto"},{"$f":"IF(E62=0, \"Basso\",IF(E62=1,\"Medio\",IF(E62=2,\"Alto\", \"Dato non elaborato\")))","v":"Basso"},{"$f":"IF(F62=0, \"Basso\",IF(F62=1,\"Medio\",IF(F62=2,\"Alto\", \"Dato non elaborato\")))","v":"Basso"},{"$f":"IF(G62=0, \"Basso\",IF(G62=1,\"Medio\",IF(G62=2,\"Alto\", \"Dato non elaborato\")))","v":"Basso"},{"$f":"IF(B62=\"Dato non elaborato\",\"Dato non elaborato\",IF(H62<0.6,\"Basso\",IF(H62>1,\"Alto\",\"Medio\")))","v":"Medio"}]
["Area Provvedimenti ampliativi della sfera giuridica dei destinatari privi di effetto economico diretto ed immediato per il destinatario: C-4 Provvedimenti amministrativi aventi ad oggetto pareri consultivi previsti per legge"]
[]
[]
[]
[]
[]
[null,"Richiedente","Introduzione procedimento","Organo Istruttore","Istruzione","Organo Decidente","Decisione","Grado complessivo di rischio"]
[null,"Requisiti non vincolanti","Requisiti non vincolanti","Segretario","Regole non vincolanti","Consiglio","Regole non vincolanti"]
["Fattore di rischio relativo",{"$f":"IF(B71=\"Requisiti vincolanti\",0,IF(B71=\"Requisiti non vincolanti\",1,IF(B71=\"Nessun requisito\",2, \"Dato non elaborato\")))","v":1},{"$f":"IF(C71=\"Requisiti vincolanti\",0,IF(C71=\"Requisiti non vincolanti\",1,IF(C71=\"Nessun requisito\",2, \"Dato non elaborato\")))","v":1},{"$f":"IF(D71=\"Consiglio\",0,IF(D71=\"Commissione\",1,IF(D71=\"Singolo componente\",2,IF(D71=\"Consigliere Delegato\",2,IF(D71=\"Presidente\",2,IF(D71=\"Vice Presidente\",2,IF(D71=\"Segretario\",2,IF(D71=\"Tesoriere\",2,\"Dato non elaborato\"))))))))","v":2},{"$f":"IF(E71=\"Regole vincolanti\",0,IF(E71=\"Regole non vincolanti\",1,IF(E71=\"Discrezionalità totale\",2, \"Dato non elaborato\")))","v":1},{"$f":"IF(F71=\"Consiglio\",0,IF(F71=\"Commissione\",1,IF(F71=\"Singolo componente\",2,IF(F71=\"Consigliere Delegato\",2,IF(F71=\"Presidente\",2,IF(F71=\"Vice Presidente\",2,IF(F71=\"Segretario\",2,IF(F71=\"Tesoriere\",2,\"Dato non elaborato\"))))))))","v":0},{"$f":"IF(G71=\"Regole vincolanti\",0,IF(G71=\"Regole non vincolanti\",1,IF(G71=\"Discrezionalità totale\",2, \"Dato non elaborato\")))","v":1},{"$f":"IF(G72=\"Dato non elaborato\", \"Dato non elaborato\",SUM(B72:G72)*2/12)","v":1}]
[null,{"$f":"IF(B72=0, \"Basso\",IF(B72=1,\"Medio\",IF(B72=2,\"Alto\", \"Dato non elaborato\")))","v":"Medio"},{"$f":"IF(C72=0, \"Basso\",IF(C72=1,\"Medio\",IF(C72=2,\"Alto\", \"Dato non elaborato\")))","v":"Medio"},{"$f":"IF(D72=0, \"Basso\",IF(D72=1,\"Medio\",IF(D72=2,\"Alto\", \"Dato non elaborato\")))","v":"Alto"},{"$f":"IF(E72=0, \"Basso\",IF(E72=1,\"Medio\",IF(E72=2,\"Alto\", \"Dato non elaborato\")))","v":"Medio"},{"$f":"IF(F72=0, \"Basso\",IF(F72=1,\"Medio\",IF(F72=2,\"Alto\", \"Dato non elaborato\")))","v":"Basso"},{"$f":"IF(G72=0, \"Basso\",IF(G72=1,\"Medio\",IF(G72=2,\"Alto\", \"Dato non elaborato\")))","v":"Medio"},{"$f":"IF(B72=\"Dato non elaborato\",\"Dato non elaborato\",IF(H72<0.6,\"Basso\",IF(H72>1,\"Alto\",\"Medio\")))","v":"Medio"}]
["Area Provvedimenti ampliativi della sfera giuridica dei destinatari privi di effetto economico diretto ed immediato per il destinatario: C-5 Provvedimenti amministrativi di opinamento parcelle ed ammissione al patricinio a spese dello Stato nel settore civile"]
[]
[]
[]
[null,"Richiedente","Introduzione procedimento","Organo Istruttore","Istruzione","Organo Decidente","Decisione","Grado complessivo di rischio"]
[null,"Requisiti vincolanti","Requisiti vincolanti","Consigliere Delegato","Regole vincolanti","Consiglio","Regole vincolanti"]
["Fattore di rischio relativo",{"$f":"IF(B79=\"Requisiti vincolanti\",0,IF(B79=\"Requisiti non vincolanti\",1,IF(B79=\"Nessun requisito\",2, \"Dato non elaborato\")))","v":0},{"$f":"IF(C79=\"Requisiti vincolanti\",0,IF(C79=\"Requisiti non vincolanti\",1,IF(C79=\"Nessun requisito\",2, \"Dato non elaborato\")))","v":0},{"$f":"IF(D79=\"Consiglio\",0,IF(D79=\"Commissione\",1,IF(D79=\"Singolo componente\",2,IF(D79=\"Consigliere Delegato\",2,IF(D79=\"Presidente\",2,IF(D79=\"Vice Presidente\",2,IF(D79=\"Segretario\",2,IF(D79=\"Tesoriere\",2,\"Dato non elaborato\"))))))))","v":2},{"$f":"IF(E79=\"Regole vincolanti\",0,IF(E79=\"Regole non vincolanti\",1,IF(E79=\"Discrezionalità totale\",2, \"Dato non elaborato\")))","v":0},{"$f":"IF(F79=\"Consiglio\",0,IF(F79=\"Commissione\",1,IF(F79=\"Singolo componente\",2,IF(F79=\"Consigliere Delegato\",2,IF(F79=\"Presidente\",2,IF(F79=\"Vice Presidente\",2,IF(F79=\"Segretario\",2,IF(F79=\"Tesoriere\",2,\"Dato non elaborato\"))))))))","v":0},{"$f":"IF(G79=\"Regole vincolanti\",0,IF(G79=\"Regole non vincolanti\",1,IF(G79=\"Discrezionalità totale\",2, \"Dato non elaborato\")))","v":0},{"$f":"IF(G80=\"Dato non elaborato\", \"Dato non elaborato\",SUM(B80:G80)*2/12)","v":0.33333333333333331}]
[null,{"$f":"IF(B80=0, \"Basso\",IF(B80=1,\"Medio\",IF(B80=2,\"Alto\", \"Dato non elaborato\")))","v":"Basso"},{"$f":"IF(C80=0, \"Basso\",IF(C80=1,\"Medio\",IF(C80=2,\"Alto\", \"Dato non elaborato\")))","v":"Basso"},{"$f":"IF(D80=0, \"Basso\",IF(D80=1,\"Medio\",IF(D80=2,\"Alto\", \"Dato non elaborato\")))","v":"Alto"},{"$f":"IF(E80=0, \"Basso\",IF(E80=1,\"Medio\",IF(E80=2,\"Alto\", \"Dato non elaborato\")))","v":"Basso"},{"$f":"IF(F80=0, \"Basso\",IF(F80=1,\"Medio\",IF(F80=2,\"Alto\", \"Dato non elaborato\")))","v":"Basso"},{"$f":"IF(G80=0, \"Basso\",IF(G80=1,\"Medio\",IF(G80=2,\"Alto\", \"Dato non elaborato\")))","v":"Basso"},{"$f":"IF(B80=\"Dato non elaborato\",\"Dato non elaborato\",IF(H80<0.6,\"Basso\",IF(H80>1,\"Alto\",\"Medio\")))","v":"Basso"}]
["Area Provvedimenti ampliativi della sfera giuridica dei destinatari privi di effetto economico diretto ed immediato per il destinatario: C-6 Provvedimenti amministrativi di conciliazione iscritto/cliente e consegna documenti al cliente "]
[]
[]
[]
[]
[null,"Richiedente","Introduzione procedimento","Organo Istruttore","Istruzione","Organo Decidente","Decisione","Grado complessivo di rischio"]
[null,"Requisiti non vincolanti","Requisiti vincolanti","Segretario","Regole vincolanti","Segretario","Regole vincolanti"]
["Fattore di rischio relativo",{"$f":"IF(B88=\"Requisiti vincolanti\",0,IF(B88=\"Requisiti non vincolanti\",1,IF(B88=\"Nessun requisito\",2, \"Dato non elaborato\")))","v":1},{"$f":"IF(C88=\"Requisiti vincolanti\",0,IF(C88=\"Requisiti non vincolanti\",1,IF(C88=\"Nessun requisito\",2, \"Dato non elaborato\")))","v":0},{"$f":"IF(D88=\"Consiglio\",0,IF(D88=\"Commissione\",1,IF(D88=\"Singolo componente\",2,IF(D88=\"Consigliere Delegato\",2,IF(D88=\"Presidente\",2,IF(D88=\"Vice Presidente\",2,IF(D88=\"Segretario\",2,IF(D88=\"Tesoriere\",2,\"Dato non elaborato\"))))))))","v":2},{"$f":"IF(E88=\"Regole vincolanti\",0,IF(E88=\"Regole non vincolanti\",1,IF(E88=\"Discrezionalità totale\",2, \"Dato non elaborato\")))","v":0},{"$f":"IF(F88=\"Consiglio\",0,IF(F88=\"Commissione\",1,IF(F88=\"Singolo componente\",2,IF(F88=\"Consigliere Delegato\",2,IF(F88=\"Presidente\",2,IF(F88=\"Vice Presidente\",2,IF(F88=\"Segretario\",2,IF(F88=\"Tesoriere\",2,\"Dato non elaborato\"))))))))","v":2},{"$f":"IF(G88=\"Regole vincolanti\",0,IF(G88=\"Regole non vincolanti\",1,IF(G88=\"Discrezionalità totale\",2, \"Dato non elaborato\")))","v":0},{"$f":"IF(G89=\"Dato non elaborato\", \"Dato non elaborato\",SUM(B89:G89)*2/12)","v":0.83333333333333337}]
[null,{"$f":"IF(B89=0, \"Basso\",IF(B89=1,\"Medio\",IF(B89=2,\"Alto\", \"Dato non elaborato\")))","v":"Medio"},{"$f":"IF(C89=0, \"Basso\",IF(C89=1,\"Medio\",IF(C89=2,\"Alto\", \"Dato non elaborato\")))","v":"Basso"},{"$f":"IF(D89=0, \"Basso\",IF(D89=1,\"Medio\",IF(D89=2,\"Alto\", \"Dato non elaborato\")))","v":"Alto"},{"$f":"IF(E89=0, \"Basso\",IF(E89=1,\"Medio\",IF(E89=2,\"Alto\", \"Dato non elaborato\")))","v":"Basso"},{"$f":"IF(F89=0, \"Basso\",IF(F89=1,\"Medio\",IF(F89=2,\"Alto\", \"Dato non elaborato\")))","v":"Alto"},{"$f":"IF(G89=0, \"Basso\",IF(G89=1,\"Medio\",IF(G89=2,\"Alto\", \"Dato non elaborato\")))","v":"Basso"},{"$f":"IF(B89=\"Dato non elaborato\",\"Dato non elaborato\",IF(H89<0.6,\"Basso\",IF(H89>1,\"Alto\",\"Medio\")))","v":"Medio"}]
["Area Provvedimenti ampliativi della sfera giuridica dei destinatari con effetto economico diretto ed immediato per il destinatario: D-1 Provvedimenti amministrativi di incasso quote dagli iscritti "]
[]
[]
[]
[]
[null,null,null,"Organo Istruttore","Istruzione","Organo Decidente","Decisione","Grado complessivo di rischio"]
[null,null,null,"Consiglio","Regole vincolanti","Consiglio","Regole vincolanti"]
[null,"Fattore di rischio relativo",null,{"$f":"IF(D97=\"Consiglio\",0,IF(D97=\"Commissione\",1,IF(D97=\"Singolo componente\",2,IF(D97=\"Consigliere Delegato\",2,IF(D97=\"Presidente\",2,IF(D97=\"Vice Presidente\",2,IF(D97=\"Segretario\",2,IF(D97=\"Tesoriere\",2,\"Dato non elaborato\"))))))))","v":0},{"$f":"IF(E97=\"Regole vincolanti\",0,IF(E97=\"Regole non vincolanti\",1,IF(E97=\"Discrezionalità totale\",2, \"Dato non elaborato\")))","v":0},{"$f":"IF(F97=\"Consiglio\",0,IF(F97=\"Commissione\",1,IF(F97=\"Singolo componente\",2,IF(F97=\"Consigliere Delegato\",2,IF(F97=\"Presidente\",2,IF(F97=\"Vice Presidente\",2,IF(F97=\"Segretario\",2,IF(F97=\"Tesoriere\",2,\"Dato non elaborato\"))))))))","v":0},{"$f":"IF(G97=\"Regole vincolanti\",0,IF(G97=\"Regole non vincolanti\",1,IF(G97=\"Discrezionalità totale\",2, \"Dato non elaborato\")))","v":0},{"$f":"IF(G98=\"Dato non elaborato\", \"Dato non elaborato\",SUM(B98:G98)*2/12)","v":0}]
[null,null,null,{"$f":"IF(D98=0, \"Basso\",IF(D98=1,\"Medio\",IF(D98=2,\"Alto\", \"Dato non elaborato\")))","v":"Basso"},{"$f":"IF(E98=0, \"Basso\",IF(E98=1,\"Medio\",IF(E98=2,\"Alto\", \"Dato non elaborato\")))","v":"Basso"},{"$f":"IF(F98=0, \"Basso\",IF(F98=1,\"Medio\",IF(F98=2,\"Alto\", \"Dato non elaborato\")))","v":"Basso"},{"$f":"IF(G98=0, \"Basso\",IF(G98=1,\"Medio\",IF(G98=2,\"Alto\", \"Dato non elaborato\")))","v":"Basso"},{"$f":"IF(D98=\"Dato non elaborato\",\"Dato non elaborato\",IF(H98<0.6,\"Basso\",IF(H98>1,\"Alto\",\"Medio\")))","v":"Basso"}]
["Area Provvedimenti ampliativi della sfera giuridica dei destinatari con effetto economico diretto ed immediato per il destinatario: D-2 Provvedimenti amministrativi di pagamento fornitori"]
[]
[]
[]
[]
[null,null,null,"Organo Istruttore","Istruzione","Organo Decidente","Decisione","Grado complessivo di rischio"]
[null,null,null,"Tesoriere","Regole non vincolanti","Consiglio","Regole vincolanti"]
[null,"Fattore di rischio relativo",null,{"$f":"IF(D106=\"Consiglio\",0,IF(D106=\"Commissione\",1,IF(D106=\"Singolo componente\",2,IF(D106=\"Consigliere Delegato\",2,IF(D106=\"Presidente\",2,IF(D106=\"Vice Presidente\",2,IF(D106=\"Segretario\",2,IF(D106=\"Tesoriere\",2,\"Dato non elaborato\"))))))))","v":2},{"$f":"IF(E106=\"Regole vincolanti\",0,IF(E106=\"Regole non vincolanti\",1,IF(E106=\"Discrezionalità totale\",2, \"Dato non elaborato\")))","v":1},{"$f":"IF(F106=\"Consiglio\",0,IF(F106=\"Commissione\",1,IF(F106=\"Singolo componente\",2,IF(F106=\"Consigliere Delegato\",2,IF(F106=\"Presidente\",2,IF(F106=\"Vice Presidente\",2,IF(F106=\"Segretario\",2,IF(F106=\"Tesoriere\",2,\"Dato non elaborato\"))))))))","v":0},{"$f":"IF(G106=\"Regole vincolanti\",0,IF(G106=\"Regole non vincolanti\",1,IF(G106=\"Discrezionalità totale\",2, \"Dato non elaborato\")))","v":0},{"$f":"IF(G107=\"Dato non elaborato\", \"Dato non elaborato\",SUM(B107:G107)*2/12)","v":0.5}]
[null,null,null,{"$f":"IF(D107=0, \"Basso\",IF(D107=1,\"Medio\",IF(D107=2,\"Alto\", \"Dato non elaborato\")))","v":"Alto"},{"$f":"IF(E107=0, \"Basso\",IF(E107=1,\"Medio\",IF(E107=2,\"Alto\", \"Dato non elaborato\")))","v":"Medio"},{"$f":"IF(F107=0, \"Basso\",IF(F107=1,\"Medio\",IF(F107=2,\"Alto\", \"Dato non elaborato\")))","v":"Basso"},{"$f":"IF(G107=0, \"Basso\",IF(G107=1,\"Medio\",IF(G107=2,\"Alto\", \"Dato non elaborato\")))","v":"Basso"},{"$f":"IF(D107=\"Dato non elaborato\",\"Dato non elaborato\",IF(H107<0.6,\"Basso\",IF(H107>1,\"Alto\",\"Medio\")))","v":"Basso"}]
["Area Provvedimenti ampliativi della sfera giuridica dei destinatari con effetto economico diretto ed immediato per il destinatario: D-3 Provvedimenti di gestione del recupero crediti verso gli iscritti e di assolvimento obblighi non di natura deontologica"]
[]
[]
[]
[null,null,null,"Organo Istruttore","Istruzione","Organo Decidente","Decisione","Grado complessivo di rischio"]
[null,null,null,"Segretario","Regole non vincolanti","Consiglio","Regole vincolanti"]
[null,"Fattore di rischio relativo",null,{"$f":"IF(D114=\"Consiglio\",0,IF(D114=\"Commissione\",1,IF(D114=\"Singolo componente\",2,IF(D114=\"Consigliere Delegato\",2,IF(D114=\"Presidente\",2,IF(D114=\"Vice Presidente\",2,IF(D114=\"Segretario\",2,IF(D114=\"Tesoriere\",2,\"Dato non elaborato\"))))))))","v":2},{"$f":"IF(E114=\"Regole vincolanti\",0,IF(E114=\"Regole non vincolanti\",1,IF(E114=\"Discrezionalità totale\",2, \"Dato non elaborato\")))","v":1},{"$f":"IF(F114=\"Consiglio\",0,IF(F114=\"Commissione\",1,IF(F114=\"Singolo componente\",2,IF(F114=\"Consigliere Delegato\",2,IF(F114=\"Presidente\",2,IF(F114=\"Vice Presidente\",2,IF(F114=\"Segretario\",2,IF(F114=\"Tesoriere\",2,\"Dato non elaborato\"))))))))","v":0},{"$f":"IF(G114=\"Regole vincolanti\",0,IF(G114=\"Regole non vincolanti\",1,IF(G114=\"Discrezionalità totale\",2, \"Dato non elaborato\")))","v":0},{"$f":"IF(G115=\"Dato non elaborato\", \"Dato non elaborato\",SUM(B115:G115)*2/12)","v":0.5}]
[null,null,null,{"$f":"IF(D115=0, \"Basso\",IF(D115=1,\"Medio\",IF(D115=2,\"Alto\", \"Dato non elaborato\")))","v":"Alto"},{"$f":"IF(E115=0, \"Basso\",IF(E115=1,\"Medio\",IF(E115=2,\"Alto\", \"Dato non elaborato\")))","v":"Medio"},{"$f":"IF(F115=0, \"Basso\",IF(F115=1,\"Medio\",IF(F115=2,\"Alto\", \"Dato non elaborato\")))","v":"Basso"},{"$f":"IF(G115=0, \"Basso\",IF(G115=1,\"Medio\",IF(G115=2,\"Alto\", \"Dato non elaborato\")))","v":"Basso"},{"$f":"IF(D115=\"Dato non elaborato\",\"Dato non elaborato\",IF(H115<0.6,\"Basso\",IF(H115>1,\"Alto\",\"Medio\")))","v":"Basso"}]

{"sheet":"Allegato B) Tabella riepilogo","index":1,"n_rows":15,"n_cols":5,"rows_kept":15,"cut":false,"hidden":false,"merged":[[0,0,0,4]]}
["Allegato B - Tabella riepilogativa con la indicazione dei valori di rischio complessivi per area con i dati relativi ai fattori di rischio ed alle Misure di Prevenzione adottate."]
["Area","Grado complessivo di rischio","Soggetti coinvolti nella fase decisionale","Fattori di rischio","Misure di prevenzione"]
["A 1",{"$f":"+'Allegato A) Valutazione rischio'!H9","v":"Basso"},{"$f":"IF(+'Allegato A) Valutazione rischio'!F7=\"Immettere dato\",\"Dato non elaborato\",+'Allegato A) Valutazione rischio'!F7)","v":"Consiglio"},"Mancata osservanza delle regole concorsuali anche con riferimento alla nomina delle Commissioni. \nPredeterminazione di percorsi agevolati per il partecipante al concorso in contrasto con le regole di imparzialità. ","Requisiti di partecipazione predeterminati.\nFormazione delle Commissioni di esame tale da impedire rischi di corruzione; cura nella scelta dei componenti."]
["A 2",{"$f":"+'Allegato A) Valutazione rischio'!H17","v":"Basso"},{"$f":"IF(+'Allegato A) Valutazione rischio'!F15=\"Immettere dato\",\"Dato non elaborato\",+'Allegato A) Valutazione rischio'!F15)","v":"Consiglio"},"Mancata osservanza delle regole concorsuali per la progressione di carriera.\nAssegnazione di mansioni superiori che possano consentire irregolare progressione economica","Osservanza rigida delle regole previste dal c.c.n.l. con esclusione di affidamento di mansioni superiori al livello retributivo e normativo del dipendente."]
["A 3",{"$f":"+'Allegato A) Valutazione rischio'!H25","v":"Medio"},{"$f":"IF(+'Allegato A) Valutazione rischio'!F23=\"Immettere dato\",\"Dato non elaborato\",+'Allegato A) Valutazione rischio'!F23)","v":"Consiglio"},"Conferimento di incarico non necessario con motivazione apparente.\nViolazione dei principi di terzietà, imparzialità e concorrenza.","Individuazione precisa dell’incarico da affidare a terzi e motivazione concludente e Indicazione specifica delle ragioni che inducono il Consiglio ad affidare a terzi incarico particolare.\nRotazione dei soggetti incaricati compatibilmente con l'offerta del mercato ed il costo per l'esercizio dell'incarico.\nScelta del professionista esterno dotaoi dei necessari requisiti per l’attribuzione dell’incarico con l’eventuale estrazione a sorte di soggetti che abbiano gli stessi requisiti.\nPreferenza di procedure ad evidenza pubblica, compatibilmente con l’incarico affidato e la delicatezza dei compiti affidati.\nUtilizzo di criteri di trasparenza sugli atti di conferimento degli incarichi. \nNomina a seguito di provvedimento collegiale del Consiglio riservando solo in caso di urgenza la nomina al Presidente, seguita dalla ratifica del Consiglio.\nVerifica dell’insussistenza di situazioni, anche potenziali, di conflitto di interesse nei confronti del soggetto che nomina il professionista a cui affidare l’incarico richiesto, del professionista designato, dei soggetti pubblici o privati richiedenti, del soggetto destinatario delle prestazioni professionali. \nAdozione di misure di trasparenza sui compensi, indicando i livelli più alti e più bassi dei compensi corrisposti, nel rispetto della normativa dettata in materia di tutela della riservatezza dei dati personali."]
["B",{"$f":"+'Allegato A) Valutazione rischio'!H33","v":"Basso"},{"$f":"IF(+'Allegato A) Valutazione rischio'!F31=\"Immettere dato\",\"Dato non elaborato\",+'Allegato A) Valutazione rischio'!F31)","v":"Consiglio"},"Individuazione del tipo di servizio o fornitura con modalità dirette a creare vantaggi personali.\nFissazione di requisiti soggettivi di partecipazione in modo da favorire uno specifico partecipante.\nRequisiti di presentazione e valutazione delle offerte distorte per favorire un partecipante.\nProcedure di aggiudicazione non concorsuali ed uso distorto del criterio dell’offerta più idonea alle necessità del Consiglio.","Delibera di fissazione del servizio/fornitura con le ragioni specifiche della scelta.\nScelta del fornitore sulla scorta del migliore rapporto fiducia/costi.\nFissazione di requisiti standard per la presentazione di offerte.\nProcedura di aggiudicazione preferibilmente con meccanismo concorsuale"]
["C 1",{"$f":"+'Allegato A) Valutazione rischio'!H42","v":"Basso"},{"$f":"IF(+'Allegato A) Valutazione rischio'!F40=\"Immettere dato\",\"Dato non elaborato\",+'Allegato A) Valutazione rischio'!F40)","v":"Consiglio"},"Abuso nell'esercizio del potere dal Consiglio","Pubblicazione sul sito web del Consiglio dei requisiti di iscrizione e del contributo di iscrizione con i relativi moduli.\nAssunzione della Delibera al massimo nella seconda Adunanza del Consiglio successiva alla presentazione della domanda di iscrizione."]
["C 2",{"$f":"+'Allegato A) Valutazione rischio'!H53","v":"Medio"},{"$f":"IF(+'Allegato A) Valutazione rischio'!F51=\"Immettere dato\",\"Dato non elaborato\",+'Allegato A) Valutazione rischio'!F51)","v":"Segretario"},"Abuso nell'esercizio del potere dal Segretario","Rilascio della certificazione al massimo entro una settimana dalla presentazione della domanda"]
["C 3 ",{"$f":"+'Allegato A) Valutazione rischio'!H63","v":"Medio"},{"$f":"IF(+'Allegato A) Valutazione rischio'!F61=\"Immettere dato\",\"Dato non elaborato\",+'Allegato A) Valutazione rischio'!F61)","v":"Consiglio"},"Abuso nell’esercizio del potere del Consiglio.\nViolazione della normativa in tema di accreditamento.\nAlterazioni documentali volte a favorire l’accreditamento di determinati soggetti. \nMancata valutazione di richieste di autorizzazione, per carenza o inadeguatezza di controlli e mancato rispetto dei regolamenti interni. \nMancata o impropria attribuzione di crediti formativi professionali agli iscritti. \nMancata o inefficiente vigilanza sugli “enti terzi” autorizzati all’erogazione della formazione; \ninefficiente organizzazione e svolgimento delle attività formative da parte del Consiglio nazionale e/o degli ordini e collegi territoriali.\n","Regolamento per l’accreditamento degli eventi formativi con individuazione precisa delle Associazioni e degli Enti locali che possano presentare domanda di accreditamento.\nDelibera di accreditamento al massimo nella seconda Adunanza del Consiglio successiva alla presentazione della domanda.\nControlli a campione sull'attribuzione dei crediti successivi all'evento e verifica periodica della posizione complessiva relativa ai crediti formativi dell'iscritto.\nIntroduzione di adeguate misure di pubblicità e trasparenza legate agli eventi formativi dei Consigli nazionali e degli ordini e collegi professionali, preferibilmente mediante pubblicazione - nel sito internet istituzionale dell’ente organizzatore - dell’evento e degli eventuali costi sostenuti.\nControlli a campione sulla persistenza dei requisiti degli “enti terzi” autorizzati all’erogazione della formazione.\nRotazione dei soggetti formatori compatibilmente con l'offerta sul territorio ed il costo per la partecipazione del relatore.\nControllo sulla persistenza dei requisiti dei soggetti erogatori della formazione."]
["C 4",{"$f":"+'Allegato A) Valutazione rischio'!H73","v":"Medio"},{"$f":"IF(+'Allegato A) Valutazione rischio'!F71=\"Immettere dato\",\"Dato non elaborato\",+'Allegato A) Valutazione rischio'!F71)","v":"Consiglio"},"Abuso nell'esercizio del parere per fini contrari a quelli previsti dalla legge","Rigido rilascio del parere solo nei limiti previsti dalla legge e pubblicazione dei pareri sul sito web del Consiglio."]
["C 5",{"$f":"+'Allegato A) Valutazione rischio'!H81","v":"Basso"},{"$f":"IF(+'Allegato A) Valutazione rischio'!F79=\"Immettere dato\",\"Dato non elaborato\",+'Allegato A) Valutazione rischio'!F79)","v":"Consiglio"},"Abuso nel rilascio dell’opinamento in violazione dei criteri previsti dal d.m. 55/2014 e dell’ammissione al Gratuito Patrocinio in assenza dei presupposti.\nIncertezza nei criteri di quantificazione degli onorari professionali.\nEffettuazione di una istruttoria lacunosa e/o parziale per favorire l’interesse del professionista. \nValutazione erronea delle indicazioni in fatto e di tutti i documenti a corredo dell’istanza e necessari alla corretta valutazione dell’attività professionale.","Fissazione generale e preventiva dei criteri di opinamento della parcella e motivazione specifica e precisa delle ragioni per il discostamento dai criteri generali stabiliti.\nVerifica puntuale dei requisiti per l’ammissione al gratuito patrocinio.\nAdozione di un regolamento interno in coerenza con la l. n. 241/1990, ove non già adottato in base all’autonomia organizzativa degli enti, che disciplini la previsione di: a) Commissioni da istituire per le valutazioni di congruità; b) specifici requisiti in capo ai componenti da nominare nelle Commissioni; c) modalità di funzionamento delle Commissioni. \nRotazione dei soggetti che istruiscono le domande. \nOrganizzazione delle richieste, raccolta e rendicontazione, su richiesta, dei pareri di congruità rilasciati anche al fine di disporre di parametri di confronto, eventualmente e se sostenibile, con una adeguata informatizzazione, nel rispetto della normativa in materia di tutela della riservatezza dei dati personali.\nMeccanismi di vigilanza sul rispetto del Regolamento.\nMotivazione specifica e precisa delle ragioni per il discostamento dai criteri generali stabiliti.\nVerifica puntuale dei requisiti per l’ammissione al gratuito patrocinio."]
["C 6",{"$f":"+'Allegato A) Valutazione rischio'!H90","v":"Medio"},{"$f":"IF(+'Allegato A) Valutazione rischio'!F88=\"Immettere dato\",\"Dato non elaborato\",+'Allegato A) Valutazione rischio'!F88)","v":"Segretario"},"Abuso del potere anche suggestivo verso una delle parti in contesa per agevolare l'altra.","Nomina del Consigliere Delegato con meccanismo di turnazione predeterminato\nFissazione di criteri generali di gestione della controversia."]
["D 1",{"$f":"+'Allegato A) Valutazione rischio'!H99","v":"Basso"},{"$f":"IF(+'Allegato A) Valutazione rischio'!F97=\"Immettere dato\",\"Dato non elaborato\",+'Allegato A) Valutazione rischio'!F97)","v":"Consiglio"},"Abuso di potere diretto a privilegiare alcuni iscritti","Meccanismo di incasso delle quote a mezzo MAV bancario e pubblicizzazione sul sito web del Consiglio delle quote con i termini di pagamento"]
["D 2",{"$f":"+'Allegato A) Valutazione rischio'!H108","v":"Basso"},{"$f":"IF(+'Allegato A) Valutazione rischio'!F106=\"Immettere dato\",\"Dato non elaborato\",+'Allegato A) Valutazione rischio'!F106)","v":"Consiglio"},"Abuso di potere diretto a privilegiare alcuni formitori","Pagamento entro 30 gg. Dall'autorizzazione all'emissione della fattura elettronica"]
["D 3",{"$f":"+'Allegato A) Valutazione rischio'!H116","v":"Basso"},{"$f":"IF(+'Allegato A) Valutazione rischio'!F114=\"Immettere dato\",\"Dato non elaborato\",+'Allegato A) Valutazione rischio'!F114)","v":"Consiglio"},"Abuso di potere diretto a privilegiare alcuni iscritti","Fissazione generale e preventiva dei criteri di gestione del recupero del credito e dei comportamenti aventi natura di obbligo a carico dell’iscritto con motivazione specifica dei provvedimenti da adottare.\nPubblicazione sul sito web del Consiglio della Delibera di fissazione dei criteri generali.\nMotivazione specifica e precisa delle ragioni per il discostamento dai criteri generali stabiliti"]